fUSD/lending_fUSD_20250930
["ID","MTS","AMOUNT","RATE_DAILY","PERIOD"]
[388557610,1759240341411,-500.0,0.00020273,2]
[388557611,1759240341421,-500.0,0.00020273,2]
[388557612,1759240341432,-500.0,0.00020273,2]
[388557613,1759240341442,-500.0,0.00020273,2]
[388557614,1759240341456,-500.0,0.00020273,2]
[388557615,1759240341466,-745.58,0.00020273,2]
[388557616,1759240341475,-500.0,0.00020273,2]
[388557617,1759240341484,-500.0,0.00020273,2]
[388557618,1759240341494,-1006.35,0.00020273,2]
[388557619,1759240341504,-500.0,0.00020273,2]
[388557620,1759240341514,-1193.9,0.00020273,2]
[388557621,1759240341524,-500.0,0.00020273,2]
[388557622,1759240341534,-500.0,0.00020273,2]
[388557623,1759240341543,-843.81,0.00020273,2]
[388557624,1759240341554,-500.0,0.00020273,2]
[388557625,1759240341564,-500.0,0.00020273,2]
[388557626,1759240341573,-500.0,0.00020273,2]
[388557627,1759240341583,-500.0,0.00020273,2]
[388557628,1759240341593,-787.49,0.00020273,2]
[388557629,1759240341604,-1328.48,0.00020273,2]
[388557630,1759240341614,-500.0,0.00020273,2]
[388557631,1759240341626,-595.3,0.00020273,2]
[388557632,1759240341637,-561.38,0.00020273,2]
[388557633,1759240341647,-500.0,0.00020273,2]
[388557634,1759240341656,-2987.59,0.00020273,2]
[388557635,1759240341667,-612.1,0.00020273,2]
[388557636,1759240341676,-500.0,0.00020273,2]
[388557637,1759240341685,-500.0,0.00020273,2]
[388557638,1759240341695,-500.0,0.00020273,2]
[388557639,1759240341704,-528.03,0.00020273,2]
[388557640,1759240341714,-705.1,0.00020273,2]
[388557641,1759240341728,-500.0,0.00020273,2]
[388557642,1759240341738,-500.0,0.00020273,2]
[388557643,1759240341748,-751.61,0.00020273,2]
[388557644,1759240341758,-538.01,0.00020273,2]
[388557645,1759240341768,-519.96,0.00020273,2]
[388557646,1759240341777,-500.0,0.00020273,2]
[388557647,1759240341787,-521.64,0.00020273,2]
[388557648,1759240341796,-500.0,0.00020273,2]
[388557649,1759240341806,-662.66,0.00020273,2]
[388557650,1759240341815,-500.0,0.00020273,2]
[388557651,1759240341824,-500.0,0.00020273,2]
[388557652,1759240341835,-500.0,0.00020273,2]
[388557653,1759240341846,-1191.76,0.00020273,2]
[388557654,1759240341856,-500.0,0.00020273,2]
[388557655,1759240341866,-830.02,0.00020273,2]
[388557656,1759240341879,-500.0,0.00020273,2]
[388557657,1759240341889,-500.0,0.00020273,2]
[388557658,1759240341900,-1407.81,0.00020273,2]
[388557659,1759240341910,-500.0,0.00020273,2]
[388557660,1759240341921,-1632.14,0.00020273,2]
[388557661,1759240341931,-2537.43,0.00020273,2]
[388557662,1759240341941,-2431.7,0.00020273,2]
[388557663,1759240341951,-500.0,0.00020273,2]
[388557664,1759240341960,-500.0,0.00020273,2]
[388557665,1759240341969,-500.0,0.00020273,2]
[388557666,1759240341979,-224.92353857,0.00020273,2]
[388557667,1759240341988,-500.0,0.00020273,2]
[388557668,1759240341997,-1277.63,0.00020273,2]
[388557669,1759240342007,-696.93,0.00020273,2]
[388557670,1759240342016,-890.61,0.00020273,2]
[388557671,1759240342026,-202.76231394,0.00020273,2]
[388557672,1759240342037,-500.0,0.00020273,2]
[388557673,1759240342047,-500.0,0.00020273,2]
[388557674,1759240342058,-209.76999716,0.00020273,2]
[388557675,1759240342069,-500.0,0.00020273,2]
[388557676,1759240342078,-500.0,0.00020273,2]
[388557677,1759240342089,-500.0,0.00020273,2]
[388557678,1759240342100,-500.0,0.00020273,2]
[388557679,1759240342109,-500.0,0.00020273,2]
[388557680,1759240342118,-1546.9,0.00020273,2]
[388557681,1759240342128,-500.0,0.00020273,2]
[388557682,1759240342137,-500.0,0.00020273,2]
[388557683,1759240342147,-500.0,0.00020273,2]
[388557684,1759240342156,-767.27,0.00020273,2]
[388557685,1759240342165,-500.0,0.00020273,2]
[388557686,1759240342174,-3185.15,0.00020273,2]
[388557687,1759240342183,-3256.72,0.00020273,2]
[388557688,1759240342192,-1019.43,0.00020273,2]
[388557689,1759240342201,-628.31,0.00020273,2]
[388557690,1759240342212,-500.0,0.00020273,2]
[388557691,1759240342221,-599.93,0.00020273,2]
[388557692,1759240342230,-500.0,0.00020273,2]
[388557693,1759240342240,-573.86,0.00020273,2]
[388557694,1759240342250,-500.0,0.00020273,2]
[388557695,1759240342259,-500.0,0.00020273,2]
[388557696,1759240342270,-500.0,0.00020273,2]
[388557697,1759240342279,-500.0,0.00020273,2]
[388557698,1759240342290,-500.0,0.00020273,2]
[388557699,1759240342301,-500.0,0.00020273,2]
[388557700,1759240342311,-500.0,0.00020273,2]
[388557701,1759240342320,-1643.07,0.00020273,2]
[388557702,1759240342330,-1654.09,0.00020273,2]
[388557703,1759240342339,-1125.03,0.00020273,2]
[388557704,1759240342350,-500.0,0.00020273,2]
[388557705,1759240342360,-500.0,0.00020273,2]
[388557706,1759240342369,-500.0,0.00020273,2]
[388557707,1759240342378,-500.0,0.00020273,2]
[388557708,1759240342388,-500.0,0.00020273,2]
[388557709,1759240342398,-500.0,0.00020273,2]
[388557710,1759240342407,-570.69,0.00020273,2]
[388557711,1759240342417,-500.0,0.00020273,2]
[388557712,1759240342426,-159.62144294,0.00020273,2]
[388557713,1759240342435,-780.09,0.00020273,2]
[388557714,1759240342444,-645.06,0.00020273,2]
[388557715,1759240342454,-2221.26,0.00020273,2]
[388557716,1759240342464,-1429.66,0.00020273,2]
[388557717,1759240342475,-1147.27,0.00020273,2]
[388557718,1759240342485,-500.0,0.00020273,2]
[388557719,1759240342494,-500.0,0.00020273,2]
[388557720,1759240342504,-677.04,0.00020273,2]
[388557721,1759240342515,-1422.36,0.00020273,2]
[388557722,1759240342524,-500.0,0.00020273,2]
[388557723,1759240342534,-2005.31,0.00020273,2]
[388557724,1759240342554,-861.63,0.00020273,2]
[388557725,1759240342564,-825.73,0.00020273,2]
[388557726,1759240342574,-500.0,0.00020273,2]
[388557727,1759240342583,-980.73,0.00020273,2]
[388557728,1759240342592,-500.0,0.00020273,2]
[388557729,1759240342603,-1482.77,0.00020273,2]
[388557730,1759240342612,-503.95,0.00020273,2]
[388557731,1759240342622,-500.0,0.00020273,2]
[388557732,1759240342635,-500.0,0.00020273,2]
[388557733,1759240342644,-500.0,0.00020273,2]
[388557734,1759240342654,-500.0,0.00020273,2]
[388557735,1759240342665,-500.0,0.00020273,2]
[388557736,1759240342676,-500.0,0.00020273,2]
[388557737,1759240342686,-500.0,0.00020273,2]
[388557738,1759240342697,-500.0,0.00020273,2]
[388557739,1759240342708,-500.0,0.00020273,2]
[388557740,1759240342719,-1642.32,0.00020273,2]
[388557741,1759240342729,-555.2,0.00020273,2]
[388557742,1759240342738,-500.0,0.00020273,2]
[388557743,1759240342748,-500.0,0.00020273,2]
[388557744,1759240342758,-519.38,0.00020273,2]
[388557745,1759240342768,-500.0,0.00020273,2]
[388557746,1759240342778,-502.53,0.00020273,2]
[388557747,1759240342788,-500.0,0.00020273,2]
[388557748,1759240342797,-500.0,0.00020273,2]
[388557749,1759240342807,-500.0,0.00020273,2]
[388557750,1759240342817,-1407.34,0.00020273,2]
[388557751,1759240342827,-1006.6,0.00020273,2]
[388557752,1759240342836,-500.0,0.00020273,2]
[388557753,1759240342846,-500.0,0.00020273,2]
[388557754,1759240342857,-500.0,0.00020273,2]
[388557755,1759240342867,-984.15,0.00020273,2]
[388557756,1759240342877,-500.0,0.00020273,2]
[388557757,1759240342887,-500.0,0.00020273,2]
[388557758,1759240342897,-500.0,0.00020273,2]
[388557759,1759240342906,-500.0,0.00020273,2]
[388557760,1759240342916,-500.0,0.00020273,2]
[388557761,1759240342926,-500.0,0.00020273,2]
[388557762,1759240342936,-500.0,0.00020273,2]
[388557763,1759240342947,-500.0,0.00020273,2]
[388557764,1759240342956,-500.0,0.00020273,2]
[388557765,1759240342966,-500.0,0.00020273,2]
[388557766,1759240342977,-500.0,0.00020273,2]
[388557768,1759240343290,-500.0,0.00020273,2]
[388557769,1759240343300,-500.0,0.00020273,2]
[388557770,1759240343311,-500.0,0.00020273,2]
[388557771,1759240343321,-500.0,0.00020273,2]
[388557772,1759240343331,-500.0,0.00020273,2]
[388557773,1759240343341,-500.0,0.00020273,2]
[388557774,1759240343353,-500.0,0.00020273,2]
[388557775,1759240343364,-500.0,0.00020273,2]
[388557776,1759240343373,-1977.24,0.00020273,2]
[388557777,1759240343384,-500.0,0.00020273,2]
[388557778,1759240343394,-500.0,0.00020273,2]
[388557779,1759240343403,-500.0,0.00020273,2]
[388557780,1759240343414,-517.59,0.00020273,2]
[388557781,1759240343424,-500.0,0.00020273,2]
[388557782,1759240343434,-1137.08,0.00020273,2]
[388557783,1759240343443,-1760.32,0.00020273,2]
[388557784,1759240343453,-500.0,0.00020273,2]
[388557785,1759240343463,-2399.12,0.00020273,2]
[388557786,1759240343472,-751.48,0.00020273,2]
[388557787,1759240343482,-500.0,0.00020273,2]
[388557788,1759240343493,-1693.84,0.00020273,2]
[388557789,1759240343502,-853.5,0.00020273,2]
[388557790,1759240343513,-500.0,0.00020273,2]
[388557791,1759240343527,-500.0,0.00020273,2]
[388557792,1759240343537,-500.0,0.00020273,2]
[388557793,1759240343547,-900.53,0.00020273,2]
[388557794,1759240343558,-2800.4,0.00020273,2]
[388557795,1759240343568,-3710.9,0.00020273,2]
[388557796,1759240343578,-500.0,0.00020273,2]
[388557797,1759240343589,-500.0,0.00020273,2]
[388557798,1759240343599,-500.0,0.00020273,2]
[388557799,1759240343612,-500.0,0.00020273,2]
[388557800,1759240343622,-780.07,0.00020273,2]
[388557801,1759240343632,-792.06,0.00020273,2]
[388557802,1759240343642,-1076.9,0.00020273,2]
[388557803,1759240343652,-1334.02,0.00020273,2]
[388557804,1759240343663,-1098.61,0.00020273,2]
[388557805,1759240343673,-500.0,0.00020273,2]
[388557806,1759240343683,-544.22,0.00020273,2]
[388557807,1759240343692,-500.0,0.00020273,2]
[388557808,1759240343703,-500.0,0.00020273,2]
[388557809,1759240343712,-714.53,0.00020273,2]
[388557810,1759240343723,-3350.21,0.00020273,2]
[388557811,1759240343733,-536.4113286,0.00020273,2]
[388557812,1759240343743,-500.0,0.00020273,2]
[388557813,1759240343753,-500.0,0.00020273,2]
[388557814,1759240343764,-705.59,0.00020273,2]
[388557815,1759240343774,-840.44,0.00020273,2]
[388557816,1759240343784,-1195.98,0.00020273,2]
[388557817,1759240343794,-2690.42,0.00020273,2]
[388557818,1759240343805,-571.65,0.00020273,2]
[388557819,1759240343815,-500.0,0.00020273,2]
[388557820,1759240343825,-500.0,0.00020273,2]
[388557821,1759240343836,-500.0,0.00020273,2]
[388557822,1759240343847,-500.0,0.00020273,2]
[388557823,1759240343860,-151.575418,0.00020273,2]
[388557824,1759240343870,-500.0,0.00020273,2]
[388557825,1759240343880,-500.0,0.00020273,2]
[388557826,1759240343890,-1726.29,0.00020273,2]
[388557827,1759240343901,-500.0,0.00020273,2]
[388557828,1759240343910,-500.0,0.00020273,2]
[388557829,1759240343925,-500.0,0.00020273,2]
[388557830,1759240343935,-5086.08,0.00020273,2]
[388557831,1759240343946,-500.0,0.00020273,2]
[388557832,1759240343957,-500.0,0.00020273,2]
[388557833,1759240343967,-500.0,0.00020273,2]
[388557834,1759240343975,-500.0,0.00020273,2]
[388557835,1759240343983,-4456.96,0.00020273,2]
[388557836,1759240343993,-500.0,0.00020273,2]
[388557837,1759240344004,-621.6,0.00020273,2]
[388557838,1759240344015,-500.0,0.00020273,2]
[388557839,1759240344026,-5163.16,0.00020273,2]
[388557840,1759240344037,-500.0,0.00020273,2]
[388557841,1759240344048,-201.40822118,0.00020273,2]
[388557842,1759240344058,-500.0,0.00020273,2]
[388557843,1759240344069,-500.0,0.00020273,2]
[388557844,1759240344080,-1240.5,0.00020273,2]
[388557845,1759240344091,-1599.6,0.00020273,2]
[388557846,1759240344104,-5656.93,0.00020273,2]
[388557847,1759240344114,-1771.49,0.00020273,2]
[388557848,1759240344125,-571.61,0.00020273,2]
[388557849,1759240344135,-596.77,0.00020273,2]
[388557850,1759240344146,-500.0,0.00020273,2]
[388557851,1759240344159,-3534.18,0.00020273,2]
[388557852,1759240344170,-500.0,0.00020273,2]
[388557853,1759240344181,-500.0,0.00020273,2]
[388557854,1759240344192,-440.14343093,0.00020273,2]
[388557855,1759240344203,-500.0,0.00020273,2]
[388557856,1759240344213,-683.71,0.00020273,2]
[388557857,1759240344224,-500.0,0.00020273,2]
[388557858,1759240344235,-500.0,0.00020273,2]
[388557859,1759240344246,-1725.05,0.00020273,2]
[388557860,1759240344257,-180.19008968,0.00020273,2]
[388557861,1759240344268,-2792.01,0.00020273,2]
[388557862,1759240344278,-1784.28,0.00020273,2]
[388557863,1759240344290,-500.0,0.00020273,2]
[388557864,1759240344301,-773.33,0.00020273,2]
[388557865,1759240344312,-1417.17,0.00020273,2]
[388557866,1759240344323,-500.0,0.00020273,2]
[388557867,1759240344333,-789.35,0.00020273,2]
[388557868,1759240344343,-174.16445386,0.00020273,2]
[388557869,1759240344354,-3388.02,0.00020273,2]
[388557870,1759240344366,-586.61,0.00020273,2]
[388557871,1759240344379,-1267.03,0.00020273,2]
[388557872,1759240344391,-500.0,0.00020273,2]
[388557873,1759240344402,-500.0,0.00020273,2]
[388557874,1759240344413,-982.97,0.00020273,2]
[388557875,1759240344424,-500.0,0.00020273,2]
[388557876,1759240344434,-500.0,0.00020273,2]
[388557877,1759240344445,-2314.25,0.00020273,2]
[388557878,1759240344455,-500.0,0.00020273,2]
[388557879,1759240344467,-1218.74,0.00020273,2]
[388557880,1759240344478,-621.59,0.00020273,2]
[388557881,1759240344489,-500.0,0.00020273,2]
[388557882,1759240344499,-608.6,0.00020273,2]
[388557883,1759240344509,-2098.99,0.00020273,2]
[388557884,1759240344519,-500.0,0.00020273,2]
[388557885,1759240344529,-3224.35,0.00020273,2]
[388557886,1759240344540,-1286.78,0.00020273,2]
[388557887,1759240344550,-2187.82,0.00020273,2]
[388557888,1759240344560,-500.0,0.00020273,2]
[388557889,1759240344571,-1729.31,0.00020273,2]
[388557890,1759240344581,-1087.68,0.00020273,2]
[388557891,1759240344591,-500.0,0.00020273,2]
[388557892,1759240344603,-1432.91,0.00020273,2]
[388557893,1759240344612,-1339.37,0.00020273,2]
[388557894,1759240344623,-4935.23,0.00020273,2]
[388557895,1759240344635,-500.0,0.00020273,2]
[388557896,1759240344647,-6485.87,0.00020273,2]
[388557897,1759240344657,-977.34,0.00020273,2]
[388557898,1759240344668,-982.28,0.00020273,2]
[388557899,1759240344678,-500.0,0.00020273,2]
[388557900,1759240344690,-500.0,0.00020273,2]
[388557901,1759240344702,-640.07,0.00020273,2]
[388557902,1759240344712,-500.0,0.00020273,2]
[388557903,1759240344722,-500.0,0.00020273,2]
[388557904,1759240344732,-4283.19,0.00020273,2]
[388557905,1759240344741,-500.0,0.00020273,2]
[388557906,1759240344752,-3484.89,0.00020273,2]
[388557907,1759240344762,-500.0,0.00020273,2]
[388557908,1759240344772,-879.58,0.00020273,2]
[388557909,1759240344782,-500.0,0.00020273,2]
[388557910,1759240344792,-771.28,0.00020273,2]
[388557911,1759240344802,-1514.61,0.00020273,2]
[388557912,1759240344813,-500.0,0.00020273,2]
[388557913,1759240344823,-642.61,0.00020273,2]
[388557914,1759240344833,-1615.18,0.00020273,2]
[388557915,1759240344843,-5250.86,0.00020273,2]
[388557916,1759240344853,-554.09,0.00020273,2]
[388557917,1759240344863,-4147.05,0.00020273,2]
[388557918,1759240344873,-500.0,0.00020273,2]
[388557919,1759240344886,-500.0,0.00020273,2]
[388557920,1759240344896,-500.0,0.00020273,2]
[388557921,1759240344907,-2880.85,0.00020273,2]
[388557922,1759240344917,-500.0,0.00020273,2]
[388557923,1759240344928,-1955.1,0.00020273,2]
[388557924,1759240344937,-4642.17,0.00020273,2]
[388557925,1759240344947,-1140.78,0.00020273,2]
[388557926,1759240344957,-3000.73,0.00020273,2]
[388557927,1759240344968,-500.0,0.00020273,2]
[388557928,1759240344978,-500.0,0.00020273,2]
[388557929,1759240344988,-909.25,0.00020273,2]
[388557930,1759240344997,-1566.99,0.00020273,2]
[388557931,1759240345007,-500.0,0.00020273,2]
[388557932,1759240345016,-701.03,0.00020273,2]
[388557933,1759240345026,-500.0,0.00020273,2]
[388557934,1759240345036,-551.13,0.00020273,2]
[388557935,1759240345046,-1273.89,0.00020273,2]
[388557936,1759240345056,-614.69,0.00020273,2]
[388557937,1759240345066,-500.0,0.00020273,2]
[388557938,1759240345077,-5689.13,0.00020273,2]
[388557939,1759240345087,-1076.21,0.00020273,2]
[388557940,1759240345097,-884.18,0.00020273,2]
[388557941,1759240345109,-500.0,0.00020273,2]
[388557942,1759240345119,-3314.41,0.00020273,2]
[388557943,1759240345128,-2180.29,0.00020273,2]
[388557944,1759240345138,-500.0,0.00020273,2]
[388557945,1759240345148,-3873.86,0.00020273,2]
[388557946,1759240345159,-3687.17,0.00020273,2]
[388557947,1759240345169,-913.68,0.00020273,2]
[388557948,1759240345179,-500.0,0.00020273,2]
[388557949,1759240345188,-659.75,0.00020273,2]
[388557950,1759240345198,-4847.84,0.00020273,2]
[388557951,1759240345209,-500.0,0.00020273,2]
[388557952,1759240345220,-2846.88,0.00020273,2]
[388557953,1759240345231,-3509.0,0.00020273,2]
[388557954,1759240345241,-657.41,0.00020273,2]
[388557955,1759240345252,-686.0,0.00020273,2]
[388557956,1759240345265,-4580.15,0.00020273,2]
[388557957,1759240345275,-500.0,0.00020273,2]
[388557958,1759240345286,-2792.33,0.00020273,2]
[388557959,1759240345297,-549.1,0.00020273,2]
[388557960,1759240345308,-1789.31,0.00020273,2]
[388557961,1759240345319,-500.0,0.00020273,2]
[388557962,1759240345328,-684.53,0.00020273,2]
[388557963,1759240345340,-500.0,0.00020273,2]
[388557964,1759240345350,-500.0,0.00020273,2]
[388557965,1759240345364,-500.0,0.00020273,2]
[388557966,1759240345374,-500.0,0.00020273,2]
[388557967,1759240345384,-751.52,0.00020273,2]
[388557968,1759240345394,-4288.38,0.00020273,2]
[388557969,1759240345404,-500.0,0.00020273,2]
[388557970,1759240345413,-4326.28,0.00020273,2]
[388557971,1759240345422,-560.42,0.00020273,2]
[388557972,1759240345432,-2533.68,0.00020273,2]
[388557973,1759240345441,-2033.24,0.00020273,2]
[388557974,1759240345451,-500.0,0.00020273,2]
[388557975,1759240345461,-3758.3,0.00020273,2]
[388557976,1759240345471,-2934.06,0.00020273,2]
[388557977,1759240345480,-650.69,0.00020273,2]
[388557978,1759240345491,-500.0,0.00020273,2]
[388557979,1759240345503,-1877.95,0.00020273,2]
[388557980,1759240345512,-532.98,0.00020273,2]
[388557981,1759240345522,-500.0,0.00020273,2]
[388557982,1759240345532,-4173.34,0.00020273,2]
[388557983,1759240345541,-2889.91,0.00020273,2]
[388557984,1759240345550,-500.0,0.00020273,2]
[388557985,1759240345560,-500.0,0.00020273,2]
[388557986,1759240345569,-3353.46,0.00020273,2]
[388557987,1759240346042,-517.4,0.00020273,2]
[388557988,1759240346052,-500.0,0.00020273,2]
[388557989,1759240346062,-500.0,0.00020273,2]
[388557990,1759240346072,-500.0,0.00020273,2]
[388557991,1759240346082,-3888.52,0.00020273,2]
[388557992,1759240346093,-500.0,0.00020273,2]
[388557993,1759240346105,-4877.04,0.00020273,2]
[388557994,1759240346115,-500.0,0.00020273,2]
[388557995,1759240346124,-500.0,0.00020273,2]
[388557996,1759240346134,-500.0,0.00020273,2]
[388557997,1759240346143,-500.0,0.00020273,2]
[388557998,1759240346154,-3410.55,0.00020273,2]
[388557999,1759240346163,-3031.79,0.00020273,2]
[388558000,1759240346173,-2806.65,0.00020273,2]
[388558001,1759240346182,-500.0,0.00020273,2]
[388558002,1759240346192,-3132.31,0.00020273,2]
[388558003,1759240346202,-500.0,0.00020273,2]
[388558004,1759240346211,-500.0,0.00020273,2]
[388558005,1759240346220,-2707.99,0.00020273,2]
[388558006,1759240346230,-2707.99,0.00020273,2]
[388558007,1759240346239,-2100.64,0.00020273,2]
[388558008,1759240346249,-1688.46,0.00020273,2]
[388558009,1759240346258,-3411.37,0.00020273,2]
[388558010,1759240346268,-521.13,0.00020273,2]
[388558011,1759240346278,-3419.82,0.00020273,2]
[388558012,1759240346287,-500.0,0.00020273,2]
[388558013,1759240346296,-551.58,0.00020273,2]
[388558014,1759240346306,-4003.15,0.00020273,2]
[388558015,1759240346316,-500.0,0.00020273,2]
[388558016,1759240346328,-2415.06,0.00020273,2]
[388558017,1759240346340,-642.82998568,0.00020273,2]
[388558018,1759240346351,-9394.178026,0.00020273,2]
[388558019,1759240346364,-405.942172,0.00020273,2]
[388558020,1759240346374,-800.44,0.00020273,2]
[388558021,1759240346384,-724.36,0.00020273,2]
[388558022,1759240346394,-417.411714,0.00020273,2]
[388558023,1759240346404,-2013.75,0.00020273,2]
[388558024,1759240346414,-2742.48,0.00020273,2]
[388558025,1759240346424,-342.860755,0.00020273,2]
[388558026,1759240346433,-500.0,0.00020273,2]
[388558027,1759240346443,-500.0,0.00020273,2]
[388558028,1759240346453,-3714.03504,0.00020273,2]
[388558029,1759240346462,-4139.96,0.00020273,2]
[388558030,1759240346472,-500.0,0.00020273,2]
[388558031,1759240346481,-8041.96422,0.00020273,2]
[388558032,1759240346490,-2166.0,0.00020273,2]
[388558033,1759240346499,-500.0,0.00020273,2]
[388558034,1759240346509,-1899.13,0.00020273,2]
[388558035,1759240346518,-500.0,0.00020273,2]
[388558036,1759240346528,-1756.01,0.00020273,2]
[388558037,1759240346537,-2473.07,0.00020273,2]
[388558038,1759240346546,-731.53,0.00020273,2]
[388558039,1759240346556,-450.94646269,0.00020273,2]
[388558040,1759240346566,-526.92,0.00020273,2]
[388558041,1759240346575,-500.0,0.00020273,2]
[388558042,1759240346584,-604.76,0.00020273,2]
[388558043,1759240346594,-3201.03,0.00020273,2]
[388558044,1759240346608,-5238.49,0.00020273,2]
[388558045,1759240346619,-500.0,0.00020273,2]
[388558046,1759240346628,-5111.26,0.00020273,2]
[388558047,1759240346638,-500.0,0.00020273,2]
[388558048,1759240346648,-2560.34,0.00020273,2]
[388558049,1759240346658,-4640.6,0.00020273,2]
[388558050,1759240346668,-500.0,0.00020273,2]
[388558051,1759240346678,-549.2216087,0.00020273,2]
[388558052,1759240346687,-500.0,0.00020273,2]
[388558053,1759240346697,-500.0,0.00020273,2]
[388558054,1759240346707,-1545.67,0.00020273,2]
[388558055,1759240346716,-4031.72,0.00020273,2]
[388558056,1759240346725,-500.0,0.00020273,2]
[388558057,1759240346735,-500.0,0.00020273,2]
[388558058,1759240346745,-500.0,0.00020273,2]
[388558059,1759240346755,-500.0,0.00020273,2]
[388558060,1759240346765,-1154.63,0.00020273,2]
[388558061,1759240346775,-1918.23,0.00020273,2]
[388558062,1759240346784,-883.02,0.00020273,2]
[388558063,1759240346794,-2339.41,0.00020273,2]
[388558064,1759240346804,-500.0,0.00020273,2]
[388558065,1759240346814,-2821.85,0.00020273,2]
[388558066,1759240346824,-500.0,0.00020273,2]
[388558067,1759240346834,-500.0,0.00020273,2]
[388558068,1759240346844,-500.0,0.00020273,2]
[388558069,1759240346856,-1184.74,0.00020273,2]
[388558070,1759240346866,-500.0,0.00020273,2]
[388558071,1759240346877,-1299.41,0.00020273,2]
[388558072,1759240346887,-4489.31,0.00020273,2]
[388558073,1759240346897,-500.0,0.00020273,2]
[388558074,1759240346906,-200.05907396,0.00020273,2]
[388558075,1759240346917,-3466.53,0.00020273,2]
[388558076,1759240346926,-934.32,0.00020273,2]
[388558077,1759240346936,-500.0,0.00020273,2]
[388558078,1759240346947,-881.11,0.00020273,2]
[388558079,1759240346956,-500.0,0.00020273,2]
[388558080,1759240346966,-3298.82,0.00020273,2]
[388558081,1759240346976,-4290.21,0.00020273,2]
[388558082,1759240346986,-500.0,0.00020273,2]
[388558083,1759240346996,-500.0,0.00020273,2]
[388558084,1759240347005,-500.0,0.00020273,2]
[388558085,1759240347015,-500.0,0.00020273,2]
[388558086,1759240347024,-3057.69,0.00020273,2]
[388558087,1759240347034,-500.0,0.00020273,2]
[388558088,1759240347045,-500.0,0.00020273,2]
[388558089,1759240347054,-4344.73,0.00020273,2]
[388558090,1759240347064,-500.0,0.00020273,2]
[388558091,1759240347075,-500.0,0.00020273,2]
[388558092,1759240347084,-500.0,0.00020273,2]
[388558093,1759240347093,-500.0,0.00020273,2]
[388558094,1759240347105,-500.0,0.00020273,2]
[388558095,1759240347114,-1700.17,0.00020273,2]
[388558096,1759240347124,-3909.15,0.00020273,2]
[388558097,1759240347133,-1339.27,0.00020273,2]
[388558098,1759240347143,-500.0,0.00020273,2]
[388558099,1759240347152,-500.0,0.00020273,2]
[388558100,1759240347161,-2034.42,0.00020273,2]
[388558101,1759240347170,-500.0,0.00020273,2]
[388558102,1759240347180,-500.0,0.00020273,2]
[388558103,1759240347189,-500.0,0.00020273,2]
[388558104,1759240347198,-736.64,0.00020273,2]
[388558105,1759240347208,-500.0,0.00020273,2]
[388558106,1759240347217,-500.0,0.00020273,2]
[388558107,1759240347226,-500.0,0.00020273,2]
[388558108,1759240347236,-732.56,0.00020273,2]
[388558109,1759240347245,-3067.08,0.00020273,2]
[388558110,1759240347255,-1529.83,0.00020273,2]